[Event "*** Titled Tuesday Blitz"]
[Site "Chess.com"]
[Date "2018.06.05"]
[Round "3"]
[White "OparinGrigoriy"]
[Black "GMSrinath"]
[Result "0-1"]
[WhiteElo "2890"]
[BlackElo "2683"]
[TimeControl "180+2"]
[EndTime "13:40:24 PDT"]
[Termination "GMSrinath won by resignation"]

1. Nf3 {[%clk 0:03:01.9]} 1... d5 {[%clk 0:02:57.4]} 2. g3 {[%clk 0:03:03.2]}
2... g6 {[%clk 0:02:58.2]} 3. Bg2 {[%clk 0:03:04.7]} 3... Bg7 {[%clk 0:02:59.9]}
4. d4 {[%clk 0:03:06.3]} 4... Nf6 {[%clk 0:03:01.4]} 5. b3 {[%clk 0:03:06.4]}
5... O-O {[%clk 0:03:01.2]} 6. O-O {[%clk 0:03:06.8]} 6... c6 {[%clk 0:02:57.5]}
7. Bb2 {[%clk 0:03:07.3]} 7... Nbd7 {[%clk 0:02:49.2]} 8. e3 {[%clk 0:03:05.8]}
8... Re8 {[%clk 0:02:50.4]} 9. c4 {[%clk 0:03:06.2]} 9... dxc4 {[%clk
0:02:38.2]} 10. bxc4 {[%clk 0:03:07.1]} 10... e5 {[%clk 0:02:34]} 11. Nc3 {[%clk
0:02:42.3]} 11... exd4 {[%clk 0:02:28.4]} 12. exd4 {[%clk 0:02:44.2]} 12... Nb6
{[%clk 0:02:29.6]} 13. Ne5 {[%clk 0:02:14.8]} 13... Nfd7 {[%clk 0:02:18.5]} 14.
Nxd7 {[%clk 0:01:11.5]} 14... Bxd7 {[%clk 0:02:20.4]} 15. Qb3 {[%clk 0:01:12.9]}
15... Bxd4 {[%clk 0:01:57.9]} 16. Rad1 {[%clk 0:01:13.6]} 16... c5 {[%clk
0:01:58]} 17. a4 {[%clk 0:00:48.3]} 17... Be6 {[%clk 0:00:57]} 18. Nd5 {[%clk
0:00:49.3]} 18... Bxd5 {[%clk 0:00:55.9]} 19. Bxd5 {[%clk 0:00:42.2]} 19... Qf6
{[%clk 0:00:52.1]} 20. Bxd4 {[%clk 0:00:36.5]} 20... cxd4 {[%clk 0:00:54]} 21.
Bxb7 {[%clk 0:00:31.3]} 21... Rab8 {[%clk 0:00:55.4]} 22. Bg2 {[%clk 0:00:32.8]}
22... Rec8 {[%clk 0:00:56.2]} 23. Qd3 {[%clk 0:00:27.1]} 23... Rd8 {[%clk
0:00:33.3]} 24. c5 {[%clk 0:00:28.1]} 24... Nxa4 {[%clk 0:00:32.9]} 25. c6
{[%clk 0:00:29.5]} 25... Nb2 {[%clk 0:00:27.3]} 26. Qc4 {[%clk 0:00:09.7]} 26...
Nxc4 {[%clk 0:00:27.8]} 0-1

[Event "*** Titled Tuesday Blitz"]
[Site "Chess.com"]
[Date "2018.06.05"]
[Round "3"]
[White "kuli4ik"]
[Black "AlexanderKing"]
[Result "1-0"]
[WhiteElo "2682"]
[BlackElo "2455"]
[TimeControl "180+2"]
[EndTime "13:40:24 PDT"]
[Termination "kuli4ik won on time"]

1. d4 {[%clk 0:03:01.9]} 1... d5 {[%clk 0:03:00.7]} 2. Nf3 {[%clk 0:03:02.1]}
2... Nf6 {[%clk 0:03:01.6]} 3. Bf4 {[%clk 0:03:03.5]} 3... c5 {[%clk 0:03:02.7]}
4. dxc5 {[%clk 0:03:05]} 4... e6 {[%clk 0:02:59.7]} 5. e3 {[%clk 0:03:06]} 5...
Bxc5 {[%clk 0:02:59.3]} 6. Be2 {[%clk 0:03:07.9]} 6... Nc6 {[%clk 0:02:59.4]} 7.
O-O {[%clk 0:03:08.7]} 7... O-O {[%clk 0:03:00.4]} 8. c4 {[%clk 0:03:10.1]} 8...
a6 {[%clk 0:02:51.4]} 9. a3 {[%clk 0:03:02.2]} 9... dxc4 {[%clk 0:02:46.2]} 10.
Bxc4 {[%clk 0:03:04.1]} 10... b5 {[%clk 0:02:46.9]} 11. Ba2 {[%clk 0:03:02.4]}
11... Qxd1 {[%clk 0:02:34.6]} 12. Rxd1 {[%clk 0:03:04.3]} 12... Bb7 {[%clk
0:02:35.2]} 13. Nbd2 {[%clk 0:03:05.6]} 13... Rfd8 {[%clk 0:02:36.1]} 14. Rac1
{[%clk 0:03:05.7]} 14... Bb6 {[%clk 0:02:35.3]} 15. Bg5 {[%clk 0:03:01.2]} 15...
Ne7 {[%clk 0:02:09.3]} 16. Kf1 {[%clk 0:02:51.8]} 16... h6 {[%clk 0:02:05]} 17.
Bxf6 {[%clk 0:02:51]} 17... gxf6 {[%clk 0:02:06.9]} 18. Ke2 {[%clk 0:02:51]}
18... Rac8 {[%clk 0:02:05]} 19. Bb1 {[%clk 0:02:51.3]} 19... f5 {[%clk
0:02:03.3]} 20. Ba2 {[%clk 0:02:46.1]} 20... Kg7 {[%clk 0:02:01.2]} 21. h3
{[%clk 0:02:36.5]} 21... Kf6 {[%clk 0:02:00]} 22. g3 {[%clk 0:02:35.5]} 22...
Nd5 {[%clk 0:01:48.3]} 23. Nb1 {[%clk 0:02:32.2]} 23... Ke7 {[%clk 0:01:47.2]}
24. Ne5 {[%clk 0:02:30.1]} 24... Nf6 {[%clk 0:01:41.2]} 25. Nc3 {[%clk
0:02:23.6]} 25... Bc7 {[%clk 0:01:30.4]} 26. Nd3 {[%clk 0:02:21.9]} 26... Bd6
{[%clk 0:01:23.6]} 27. Nb4 {[%clk 0:02:10.8]} 27... a5 {[%clk 0:01:12.6]} 28.
Nd3 {[%clk 0:02:04.3]} 28... b4 {[%clk 0:01:12.9]} 29. axb4 {[%clk 0:02:01.5]}
29... axb4 {[%clk 0:01:02.8]} 30. Nb5 {[%clk 0:02:00.6]} 30... Rxc1 {[%clk
0:00:57.3]} 31. Rxc1 {[%clk 0:02:00.1]} 31... Ba6 {[%clk 0:00:58.6]} 32. Bc4
{[%clk 0:01:43]} 32... Bxb5 {[%clk 0:00:12.2]} 33. Bxb5 {[%clk 0:01:43.2]} 33...
Rb8 {[%clk 0:00:14.1]} 34. Bc4 {[%clk 0:01:38.4]} 34... Rc8 {[%clk 0:00:13.4]}
35. b3 {[%clk 0:01:38]} 35... Ra8 {[%clk 0:00:14.8]} 36. Rc2 {[%clk 0:01:36.6]}
36... Ne4 {[%clk 0:00:15.1]} 37. g4 {[%clk 0:01:34.9]} 37... fxg4 {[%clk
0:00:10.5]} 38. hxg4 {[%clk 0:01:36.8]} 38... Ra3 {[%clk 0:00:07.3]} 39. Kf3
{[%clk 0:01:30.5]} 39... Nf6 {[%clk 0:00:05.2]} 40. Rc1 {[%clk 0:01:25.3]} 1-0

[Event "*** Titled Tuesday Blitz"]
[Site "Chess.com"]
[Date "2018.06.05"]
[Round "3"]
[White "petrpalachev"]
[Black "Shaman91"]
[Result "1-0"]
[WhiteElo "2695"]
[BlackElo "2563"]
[TimeControl "180+2"]
[EndTime "13:40:27 PDT"]
[Termination "petrpalachev won by resignation"]

1. d4 {[%clk 0:03:01.9]} 1... Nf6 {[%clk 0:02:59.9]} 2. c4 {[%clk 0:03:03.1]}
2... e6 {[%clk 0:03:00.7]} 3. Nf3 {[%clk 0:03:03.6]} 3... c5 {[%clk 0:03:01]} 4.
d5 {[%clk 0:03:04.5]} 4... d6 {[%clk 0:03:02.2]} 5. Nc3 {[%clk 0:03:05.7]} 5...
g6 {[%clk 0:03:03.4]} 6. h3 {[%clk 0:03:06.2]} 6... Bg7 {[%clk 0:03:04.3]} 7. e4
{[%clk 0:03:07.5]} 7... O-O {[%clk 0:03:04.9]} 8. Bd3 {[%clk 0:03:09]} 8... Na6
{[%clk 0:03:05.9]} 9. O-O {[%clk 0:03:03.7]} 9... Nc7 {[%clk 0:03:07]} 10. Re1
{[%clk 0:03:03.9]} 10... Rb8 {[%clk 0:03:06.9]} 11. a4 {[%clk 0:03:03.8]} 11...
e5 {[%clk 0:03:07.2]} 12. a5 {[%clk 0:02:59.7]} 12... Na6 {[%clk 0:03:07.5]} 13.
Bf1 {[%clk 0:02:57.6]} 13... Kh8 {[%clk 0:03:05.7]} 14. g3 {[%clk 0:02:58.1]}
14... Ng8 {[%clk 0:03:06.3]} 15. Bg2 {[%clk 0:02:58.6]} 15... f5 {[%clk
0:03:07.1]} 16. exf5 {[%clk 0:02:55.7]} 16... gxf5 {[%clk 0:02:59.4]} 17. Bg5
{[%clk 0:02:54.1]} 17... Qe8 {[%clk 0:02:54.7]} 18. Nb5 {[%clk 0:02:50.5]} 18...
Qg6 {[%clk 0:02:52.8]} 19. Bd2 {[%clk 0:02:20]} 19... Ra8 {[%clk 0:02:37.1]} 20.
Ra3 {[%clk 0:02:16.8]} 20... Bf6 {[%clk 0:02:25.8]} 21. Nh2 {[%clk 0:02:13.9]}
21... Bg7 {[%clk 0:02:15.4]} 22. g4 {[%clk 0:02:07.9]} 22... Ne7 {[%clk
0:02:14.9]} 23. Rg3 {[%clk 0:02:06]} 23... Bd7 {[%clk 0:01:53.4]} 24. gxf5
{[%clk 0:02:02.4]} 24... Qxf5 {[%clk 0:01:55.1]} 25. Qe2 {[%clk 0:02:03.5]}
25... Bxb5 {[%clk 0:01:51.7]} 26. cxb5 {[%clk 0:02:05.4]} 26... Nb4 {[%clk
0:01:53.3]} 27. Be4 {[%clk 0:02:06.2]} 27... Qf7 {[%clk 0:01:53.4]} 28. Nf3
{[%clk 0:02:03.7]} 28... Nf5 {[%clk 0:01:51.3]} 29. Ng5 {[%clk 0:01:53.9]} 29...
Qf6 {[%clk 0:01:22.4]} 30. Bxf5 {[%clk 0:01:50.2]} 30... Qxf5 {[%clk 0:01:22.4]}
31. Bxb4 {[%clk 0:01:52.1]} 31... cxb4 {[%clk 0:01:22.7]} 32. Ne4 {[%clk
0:01:52.9]} 32... Rad8 {[%clk 0:01:16.5]} 33. Qg4 {[%clk 0:01:53.2]} 33... Qf7
{[%clk 0:01:14.4]} 34. Qe6 {[%clk 0:01:51.6]} 34... Qf4 {[%clk 0:01:02.2]} 35.
Qe7 {[%clk 0:01:47.7]} 35... Bh6 {[%clk 0:00:55.8]} 36. Re2 {[%clk 0:01:44.2]}
36... Qf7 {[%clk 0:00:45]} 37. Qxf7 {[%clk 0:01:44.3]} 37... Rxf7 {[%clk
0:00:46.8]} 38. Rc2 {[%clk 0:01:42.7]} 38... Rf4 {[%clk 0:00:40.9]} 39. Rc4
{[%clk 0:01:43.6]} 39... Bf8 {[%clk 0:00:34.4]} 40. b3 {[%clk 0:01:44.5]} 40...
Rf7 {[%clk 0:00:22.2]} 41. Rxb4 {[%clk 0:01:43.2]} 41... Rc7 {[%clk 0:00:21.5]}
42. Rc4 {[%clk 0:01:44.5]} 42... Rxc4 {[%clk 0:00:19.8]} 43. bxc4 {[%clk
0:01:46.4]} 43... Rc8 {[%clk 0:00:21.2]} 44. Ng5 {[%clk 0:01:39.1]} 44... Bg7
{[%clk 0:00:17.8]} 45. Nf7+ {[%clk 0:01:38.7]} 1-0

[Event "*** Titled Tuesday Blitz"]
[Site "Chess.com"]
[Date "2018.06.05"]
[Round "3"]
[White "Zufi1811"]
[Black "Dedic8"]
[Result "0-1"]
[WhiteElo "2457"]
[BlackElo "2640"]
[TimeControl "180+2"]
[EndTime "13:40:27 PDT"]
[Termination "Dedic8 won by resignation"]

1. e4 {[%clk 0:03:01.9]} 1... c6 {[%clk 0:03:01.1]} 2. d4 {[%clk 0:03:01.7]}
2... d5 {[%clk 0:03:02.3]} 3. Nc3 {[%clk 0:03:03.2]} 3... dxe4 {[%clk 0:03:03]}
4. Nxe4 {[%clk 0:03:05.1]} 4... Bf5 {[%clk 0:03:04.5]} 5. Ng3 {[%clk 0:03:06.1]}
5... Bg6 {[%clk 0:03:05.9]} 6. h4 {[%clk 0:03:06.8]} 6... h6 {[%clk 0:03:06.8]}
7. Nf3 {[%clk 0:03:08.2]} 7... Nd7 {[%clk 0:03:07.6]} 8. h5 {[%clk 0:03:08.6]}
8... Bh7 {[%clk 0:03:08.7]} 9. Bd3 {[%clk 0:03:09.7]} 9... Bxd3 {[%clk
0:03:09.8]} 10. Qxd3 {[%clk 0:03:11.6]} 10... Ngf6 {[%clk 0:03:09.7]} 11. Bd2
{[%clk 0:03:12.9]} 11... e6 {[%clk 0:03:10.7]} 12. O-O-O {[%clk 0:03:14.3]}
12... Be7 {[%clk 0:03:09.9]} 13. Kb1 {[%clk 0:03:11.7]} 13... O-O {[%clk
0:03:10.2]} 14. Ne4 {[%clk 0:03:11.9]} 14... Nxe4 {[%clk 0:03:11]} 15. Qxe4
{[%clk 0:03:13.8]} 15... Nf6 {[%clk 0:03:09.8]} 16. Qe2 {[%clk 0:03:14.7]} 16...
Qd5 {[%clk 0:02:56.9]} 17. Ne5 {[%clk 0:02:45.5]} 17... Qxd4 {[%clk 0:02:21.9]}
18. Bxh6 {[%clk 0:01:53.8]} 18... Qe4 {[%clk 0:02:22.8]} 19. Qxe4 {[%clk
0:01:52.9]} 19... Nxe4 {[%clk 0:02:24.7]} 20. Be3 {[%clk 0:01:53.7]} 20... Rfd8
{[%clk 0:02:01.1]} 21. g4 {[%clk 0:01:43.1]} 21... Rd5 {[%clk 0:01:34.4]} 22.
Rxd5 {[%clk 0:01:32.8]} 22... cxd5 {[%clk 0:01:34.7]} 23. f3 {[%clk 0:01:33.3]}
23... Nd6 {[%clk 0:01:01.7]} 24. b3 {[%clk 0:01:05]} 24... a5 {[%clk 0:00:59]}
25. a4 {[%clk 0:00:56.7]} 25... b5 {[%clk 0:00:59.8]} 26. Nc6 {[%clk 0:00:52]}
26... Bf8 {[%clk 0:01:00.7]} 27. Ka2 {[%clk 0:00:42.4]} 27... bxa4 {[%clk
0:01:00.6]} 28. bxa4 {[%clk 0:00:44.3]} 28... Nc4 {[%clk 0:01:01.4]} 29. Bd4
{[%clk 0:00:42.9]} 29... Ra6 {[%clk 0:00:44.9]} 30. Ne5 {[%clk 0:00:34.4]} 30...
Nxe5 {[%clk 0:00:43.6]} 31. Bxe5 {[%clk 0:00:36.3]} 31... Rc6 {[%clk 0:00:44]}
32. c3 {[%clk 0:00:36.7]} 32... f6 {[%clk 0:00:40.6]} 33. Bd4 {[%clk 0:00:36.8]}
33... e5 {[%clk 0:00:42.1]} 34. Bf2 {[%clk 0:00:26.2]} 34... Rxc3 {[%clk
0:00:42.8]} 0-1

[Event "*** Titled Tuesday Blitz"]
[Site "Chess.com"]
[Date "2018.06.05"]
[Round "3"]
[White "fyall777"]
[Black "ChessicallyInclined"]
[Result "1-0"]
[WhiteElo "2311"]
[BlackElo "2230"]
[TimeControl "180+2"]
[EndTime "13:40:31 PDT"]
[Termination "fyall777 won by resignation"]

1. e4 {[%clk 0:03:01.9]} 1... e5 {[%clk 0:03:00.5]} 2. Nf3 {[%clk 0:03:00.6]}
2... Nc6 {[%clk 0:03:01.1]} 3. Bb5 {[%clk 0:03:02]} 3... a6 {[%clk 0:03:01.5]}
4. Bxc6 {[%clk 0:03:03.2]} 4... dxc6 {[%clk 0:03:02.1]} 5. O-O {[%clk
0:03:02.3]} 5... Bg4 {[%clk 0:03:03.1]} 6. h3 {[%clk 0:02:58.5]} 6... h5 {[%clk
0:03:03.4]} 7. d3 {[%clk 0:02:52.1]} 7... Qf6 {[%clk 0:02:57.7]} 8. Nbd2 {[%clk
0:02:51.6]} 8... Bc5 {[%clk 0:02:41.2]} 9. Nc4 {[%clk 0:02:51.9]} 9... Bxf3
{[%clk 0:02:40.4]} 10. Qxf3 {[%clk 0:02:50.3]} 10... Qxf3 {[%clk 0:02:41.1]} 11.
gxf3 {[%clk 0:02:50.8]} 11... f6 {[%clk 0:02:40.3]} 12. f4 {[%clk 0:02:49]}
12... exf4 {[%clk 0:02:39.6]} 13. Bxf4 {[%clk 0:02:49]} 13... b5 {[%clk
0:02:40.4]} 14. Na5 {[%clk 0:02:45.4]} 14... Kd7 {[%clk 0:02:40.8]} 15. d4
{[%clk 0:02:43]} 15... Bd6 {[%clk 0:02:34.1]} 16. e5 {[%clk 0:02:41]} 16... Bb4
{[%clk 0:02:28.5]} 17. Nb3 {[%clk 0:02:40.1]} 17... g5 {[%clk 0:02:19.5]} 18.
Bh2 {[%clk 0:02:25.6]} 18... f5 {[%clk 0:02:03.7]} 19. h4 {[%clk 0:02:17.8]}
19... gxh4 {[%clk 0:01:57.9]} 20. c3 {[%clk 0:02:15.9]} 20... Be7 {[%clk
0:01:52.1]} 21. Rfe1 {[%clk 0:01:55]} 21... Ke6 {[%clk 0:01:50.1]} 22. Na5
{[%clk 0:01:55.7]} 22... Nh6 {[%clk 0:01:03.4]} 23. Nxc6 {[%clk 0:01:49.1]}
23... Rag8+ {[%clk 0:01:03.3]} 24. Kf1 {[%clk 0:01:34.9]} 24... Ng4 {[%clk
0:01:03.7]} 25. Bf4 {[%clk 0:01:35.2]} 25... Bg5 {[%clk 0:00:54.8]} 26. Bxg5
{[%clk 0:01:35.7]} 26... Rxg5 {[%clk 0:00:56.7]} 27. Rad1 {[%clk 0:01:36]} 27...
Kd5 {[%clk 0:00:13.6]} 28. Nb4+ {[%clk 0:01:29.9]} 28... Ke6 {[%clk 0:00:12.4]}
29. d5+ {[%clk 0:01:26.9]} 29... Kf7 {[%clk 0:00:10.5]} 30. e6+ {[%clk 0:01:20]}
30... Ke7 {[%clk 0:00:11.4]} 31. d6+ {[%clk 0:01:19.2]} 31... cxd6 {[%clk
0:00:11.9]} 32. Nc6+ {[%clk 0:01:20.2]} 32... Ke8 {[%clk 0:00:12.5]} 33. Rxd6
{[%clk 0:01:20.5]} 33... Nh2+ {[%clk 0:00:12.1]} 34. Ke2 {[%clk 0:01:18.4]}
34... Kf8 {[%clk 0:00:13]} 35. Rd8+ {[%clk 0:01:15.7]} 35... Kg7 {[%clk
0:00:12.9]} 36. e7 {[%clk 0:01:17.2]} 36... Rg6 {[%clk 0:00:06]} 37. Rxh8 {[%clk
0:01:15.6]} 37... Re6+ {[%clk 0:00:06.6]} 38. Kd2 {[%clk 0:01:15.6]} 38... Rd6+
{[%clk 0:00:07.1]} 39. Kc2 {[%clk 0:01:13.4]} 1-0

[Event "*** Titled Tuesday Blitz"]
[Site "Chess.com"]
[Date "2018.06.05"]
[Round "3"]
[White "dmosesov"]
[Black "Velis23"]
[Result "0-1"]
[WhiteElo "2197"]
[BlackElo "2252"]
[TimeControl "180+2"]
[EndTime "13:40:35 PDT"]
[Termination "Velis23 won on time"]

1. e4 {[%clk 0:03:01.9]} 1... d5 {[%clk 0:02:59.5]} 2. exd5 {[%clk 0:03:02.2]}
2... Qxd5 {[%clk 0:03:00.1]} 3. Nc3 {[%clk 0:03:03.4]} 3... Qd8 {[%clk
0:03:00.8]} 4. d4 {[%clk 0:03:03.1]} 4... Nf6 {[%clk 0:03:01.4]} 5. Nf3 {[%clk
0:03:03.6]} 5... Bg4 {[%clk 0:03:02.1]} 6. Be2 {[%clk 0:02:56.6]} 6... e6 {[%clk
0:03:00.7]} 7. O-O {[%clk 0:02:56.8]} 7... c6 {[%clk 0:03:00.5]} 8. h3 {[%clk
0:02:57.6]} 8... Bxf3 {[%clk 0:03:00.1]} 9. Bxf3 {[%clk 0:02:57.8]} 9... Nbd7
{[%clk 0:03:01.5]} 10. Bf4 {[%clk 0:02:56]} 10... Nd5 {[%clk 0:02:56.5]} 11.
Nxd5 {[%clk 0:02:53.4]} 11... cxd5 {[%clk 0:02:57.3]} 12. c4 {[%clk 0:02:42.6]}
12... Nb6 {[%clk 0:02:53.2]} 13. cxd5 {[%clk 0:02:34.2]} 13... Nxd5 {[%clk
0:02:52.6]} 14. Qa4+ {[%clk 0:02:27.5]} 14... Qd7 {[%clk 0:02:53.4]} 15. Qxd7+
{[%clk 0:02:28.3]} 15... Kxd7 {[%clk 0:02:54.1]} 16. Bd2 {[%clk 0:02:27.9]}
16... Be7 {[%clk 0:02:49.8]} 17. Rfd1 {[%clk 0:02:24.2]} 17... Rac8 {[%clk
0:02:48.4]} 18. Rac1 {[%clk 0:02:24.4]} 18... Bf6 {[%clk 0:02:47.7]} 19. Be3
{[%clk 0:02:22.2]} 19... Rc6 {[%clk 0:02:42.9]} 20. Rxc6 {[%clk 0:02:21.5]}
20... bxc6 {[%clk 0:02:43.2]} 21. Rd3 {[%clk 0:02:03.3]} 21... Rb8 {[%clk
0:02:40.2]} 22. Ra3 {[%clk 0:02:01.4]} 22... Rb7 {[%clk 0:02:36.1]} 23. Kf1
{[%clk 0:01:38.6]} 23... Be7 {[%clk 0:02:33.3]} 24. Rb3 {[%clk 0:01:33.6]} 24...
Rxb3 {[%clk 0:02:21.1]} 25. axb3 {[%clk 0:01:35.5]} 25... f5 {[%clk 0:02:21.9]}
26. Ke2 {[%clk 0:01:27.7]} 26... Bf6 {[%clk 0:02:17.5]} 27. Kd3 {[%clk
0:01:20.3]} 27... g5 {[%clk 0:02:11.3]} 28. g3 {[%clk 0:00:59.9]} 28... h6
{[%clk 0:02:02.4]} 29. Bd2 {[%clk 0:00:46.2]} 29... Be7 {[%clk 0:01:59.2]} 30.
Kc4 {[%clk 0:00:25.3]} 30... Bd6 {[%clk 0:01:57.7]} 31. Kd3 {[%clk 0:00:21.2]}
31... Kc7 {[%clk 0:01:51.5]} 32. Kc4 {[%clk 0:00:20.4]} 32... Kb6 {[%clk
0:01:50.9]} 33. Kd3 {[%clk 0:00:19.1]} 33... Kb5 {[%clk 0:01:51.6]} 34. Bh5
{[%clk 0:00:18.1]} 34... e5 {[%clk 0:01:43.5]} 35. dxe5 {[%clk 0:00:17.5]} 35...
Bxe5 {[%clk 0:01:43.9]} 36. Bc3 {[%clk 0:00:08.7]} 36... Bd6 {[%clk 0:01:30.4]}
37. Bf7 {[%clk 0:00:03.9]} 37... f4 {[%clk 0:01:29.3]} 0-1

[Event "*** Titled Tuesday Blitz"]
[Site "Chess.com"]
[Date "2018.06.05"]
[Round "3"]
[White "gpeloui"]
[Black "GameOverBro"]
[Result "1-0"]
[WhiteElo "2345"]
[BlackElo "2383"]
[TimeControl "180+2"]
[EndTime "13:40:37 PDT"]
[Termination "gpeloui won by resignation"]

1. e4 {[%clk 0:03:01.9]} 1... d6 {[%clk 0:03:00.9]} 2. d4 {[%clk 0:03:02.1]}
2... Nf6 {[%clk 0:03:01.9]} 3. Nc3 {[%clk 0:03:01]} 3... e5 {[%clk 0:03:02.2]}
4. Nf3 {[%clk 0:02:58]} 4... Nbd7 {[%clk 0:03:02.4]} 5. Bc4 {[%clk 0:02:56.6]}
5... Be7 {[%clk 0:03:03.1]} 6. O-O {[%clk 0:02:55.9]} 6... O-O {[%clk
0:03:03.3]} 7. Re1 {[%clk 0:02:56.4]} 7... c6 {[%clk 0:03:04.3]} 8. a4 {[%clk
0:02:57.2]} 8... h6 {[%clk 0:03:03.4]} 9. h3 {[%clk 0:02:54.7]} 9... Qc7 {[%clk
0:03:04.3]} 10. dxe5 {[%clk 0:02:44.9]} 10... dxe5 {[%clk 0:03:04.4]} 11. a5
{[%clk 0:02:39.7]} 11... Re8 {[%clk 0:02:57.6]} 12. Qe2 {[%clk 0:02:04.8]} 12...
Bb4 {[%clk 0:02:54.9]} 13. Bxf7+ {[%clk 0:02:02]} 13... Kxf7 {[%clk 0:02:38.4]}
14. Qc4+ {[%clk 0:02:03.4]} 14... Kg6 {[%clk 0:02:37.6]} 15. Qxb4 {[%clk
0:01:59.8]} 15... Kh7 {[%clk 0:02:31.1]} 16. Nh4 {[%clk 0:01:57.6]} 16... Nf8
{[%clk 0:02:28.1]} 17. Nf5 {[%clk 0:01:35.7]} 17... Ng8 {[%clk 0:01:51.2]} 18.
Qc4 {[%clk 0:01:21.9]} 18... g6 {[%clk 0:01:51.9]} 19. Nd6 {[%clk 0:01:12.2]}
19... Re7 {[%clk 0:01:28.8]} 20. Nxc8 {[%clk 0:01:06.4]} 20... Rxc8 {[%clk
0:01:30.7]} 21. b3 {[%clk 0:00:59.4]} 21... Ne6 {[%clk 0:01:21.5]} 22. Ba3
{[%clk 0:00:59.4]} 22... Ree8 {[%clk 0:01:22.2]} 23. Rad1 {[%clk 0:00:58.7]}
23... Nd4 {[%clk 0:01:16.5]} 24. Ne2 {[%clk 0:01:00.1]} 24... Nb5 {[%clk
0:01:13.2]} 25. Bb4 {[%clk 0:00:56.6]} 25... Nf6 {[%clk 0:01:13]} 26. Ng3 {[%clk
0:00:47.3]} 26... Nd4 {[%clk 0:01:08.6]} 27. Rd2 {[%clk 0:00:42.6]} 27... b5
{[%clk 0:01:00.9]} 28. axb6 {[%clk 0:00:40.9]} 28... axb6 {[%clk 0:01:01.8]} 29.
Bc3 {[%clk 0:00:41.2]} 29... Ne6 {[%clk 0:00:54.7]} 30. Red1 {[%clk 0:00:32.1]}
30... b5 {[%clk 0:00:55.7]} 31. Qe2 {[%clk 0:00:30]} 31... Nf4 {[%clk
0:00:56.5]} 32. Qf3 {[%clk 0:00:30.6]} 32... c5 {[%clk 0:00:53.1]} 33. Ne2
{[%clk 0:00:30.8]} 33... N6h5 {[%clk 0:00:51.5]} 34. Rd7+ {[%clk 0:00:30.3]}
34... Re7 {[%clk 0:00:51.3]} 35. Rxc7 {[%clk 0:00:31.2]} 35... Rcxc7 {[%clk
0:00:52.8]} 36. Nxf4 {[%clk 0:00:32.2]} 36... Nxf4 {[%clk 0:00:54.3]} 37. Bxe5
{[%clk 0:00:33.7]} 37... Nxh3+ {[%clk 0:00:47.7]} 38. Qxh3 {[%clk 0:00:32.6]}
38... Rxe5 {[%clk 0:00:49.1]} 1-0

[Event "*** Titled Tuesday Blitz"]
[Site "Chess.com"]
[Date "2018.06.05"]
[Round "3"]
[White "colegiodemadrid"]
[Black "Morshynska"]
[Result "1-0"]
[WhiteElo "2288"]
[BlackElo "2156"]
[TimeControl "180+2"]
[EndTime "13:40:39 PDT"]
[Termination "colegiodemadrid won by resignation"]

1. e4 {[%clk 0:03:01.9]} 1... e5 {[%clk 0:02:59.5]} 2. Bc4 {[%clk 0:03:01.3]}
2... Nf6 {[%clk 0:02:58.5]} 3. d3 {[%clk 0:03:02.5]} 3... Bc5 {[%clk 0:02:53.1]}
4. Nc3 {[%clk 0:03:01.6]} 4... Nc6 {[%clk 0:02:50.6]} 5. f4 {[%clk 0:03:02]}
5... d6 {[%clk 0:02:47.2]} 6. Nf3 {[%clk 0:02:55.7]} 6... a6 {[%clk 0:02:46.2]}
7. f5 {[%clk 0:02:54.1]} 7... b5 {[%clk 0:02:40.3]} 8. Bb3 {[%clk 0:02:54.1]}
8... h6 {[%clk 0:02:33.6]} 9. Qe2 {[%clk 0:02:48.7]} 9... Bb7 {[%clk 0:02:27.8]}
10. Be3 {[%clk 0:02:46.4]} 10... Bxe3 {[%clk 0:02:09.4]} 11. Qxe3 {[%clk
0:02:47.2]} 11... Na5 {[%clk 0:02:08.2]} 12. O-O {[%clk 0:02:44.2]} 12... Nxb3
{[%clk 0:02:04.7]} 13. axb3 {[%clk 0:02:45.5]} 13... c5 {[%clk 0:02:04.9]} 14.
Kh1 {[%clk 0:02:06.9]} 14... Qc7 {[%clk 0:01:57.8]} 15. Qe2 {[%clk 0:01:58.3]}
15... O-O-O {[%clk 0:01:57.3]} 16. Nd1 {[%clk 0:01:54.7]} 16... d5 {[%clk
0:01:30.1]} 17. Nf2 {[%clk 0:01:55.6]} 17... Rhe8 {[%clk 0:01:27.5]} 18. c3
{[%clk 0:01:50.9]} 18... Re7 {[%clk 0:01:24.1]} 19. c4 {[%clk 0:01:46.7]} 19...
dxe4 {[%clk 0:01:23.7]} 20. dxe4 {[%clk 0:01:47.3]} 20... b4 {[%clk 0:01:22.8]}
21. Rad1 {[%clk 0:01:45.7]} 21... Red7 {[%clk 0:01:13.8]} 22. Rd5 {[%clk
0:01:47]} 22... Nxd5 {[%clk 0:01:11.2]} 23. cxd5 {[%clk 0:01:46.3]} 23... g6
{[%clk 0:01:01]} 24. fxg6 {[%clk 0:01:42.6]} 24... fxg6 {[%clk 0:01:02.9]} 25.
Rc1 {[%clk 0:01:43.6]} 25... Kb8 {[%clk 0:01:00.6]} 26. Nd3 {[%clk 0:01:41.1]}
26... Qb6 {[%clk 0:00:48.2]} 27. Ndxe5 {[%clk 0:01:40.5]} 27... Re7 {[%clk
0:00:37.9]} 28. Nc4 {[%clk 0:01:39.4]} 28... Qb5 {[%clk 0:00:35]} 29. Qd3 {[%clk
0:01:22]} 29... g5 {[%clk 0:00:27]} 30. Re1 {[%clk 0:01:18.6]} 30... g4 {[%clk
0:00:24.5]} 31. Nh4 {[%clk 0:01:19.2]} 31... Rxd5 {[%clk 0:00:19.4]} 32. Qg3+
{[%clk 0:01:16.9]} 32... Ka7 {[%clk 0:00:17]} 33. exd5 {[%clk 0:01:17]} 33...
Rd7 {[%clk 0:00:14.3]} 34. d6 {[%clk 0:01:14.6]} 34... Bd5 {[%clk 0:00:14.4]}
35. Re7 {[%clk 0:01:14.3]} 35... a5 {[%clk 0:00:13]} 36. Rxd7+ {[%clk
0:01:13.4]} 36... Qxd7 {[%clk 0:00:14.9]} 37. Qe5 {[%clk 0:01:14.8]} 37... Bxc4
{[%clk 0:00:15.1]} 38. bxc4 {[%clk 0:01:16]} 1-0